fUSD/lending_fUSD_20260703
["ID","MTS","AMOUNT","RATE_DAILY","PERIOD"]
[426920107,1783017033000,-500.0,0.00024479,2]
[426920102,1783017033000,-500.0,0.00024479,2]
[426920106,1783017033000,-500.0,0.00024479,2]
[426920105,1783017033000,-500.0,0.00024479,2]
[426920131,1783017033000,-500.0,0.00024479,2]
[426920104,1783017033000,-500.0,0.00024479,2]
[426920109,1783017033000,-500.0,0.00024479,2]
[426920108,1783017033000,-500.0,0.00024479,2]
[426920111,1783017033000,-500.0,0.00024479,2]
[426920100,1783017033000,-500.0,0.00024479,2]
[426920110,1783017033000,-500.0,0.00024479,2]
[426920103,1783017033000,-500.0,0.00024479,2]
[426920112,1783017033000,-194.17203286,0.00024479,2]
[426920122,1783017033000,-500.0,0.00024479,2]
[426920124,1783017033000,-500.0,0.00024479,2]
[426920120,1783017033000,-500.0,0.00024479,2]
[426920114,1783017033000,-500.0,0.00024479,2]
[426920116,1783017033000,-500.0,0.00024479,2]
[426920117,1783017033000,-500.0,0.00024479,2]
[426920118,1783017033000,-500.0,0.00024479,2]
[426920121,1783017033000,-479.81589769,0.00024479,2]
[426920115,1783017033000,-500.0,0.00024479,2]
[426920123,1783017033000,-500.0,0.00024479,2]
[426920113,1783017033000,-500.0,0.00024479,2]
[426920119,1783017033000,-500.0,0.00024479,2]
[426920175,1783017038000,-773.44,0.00025262,2]
[426920173,1783017038000,-166.65,0.00025023,2]
[426920168,1783017038000,-166.0,0.00025,2]
[426920172,1783017038000,-1798.0,0.00025006,2]
[426920171,1783017038000,-219.0,0.00025,2]
[426920169,1783017038000,-253.0,0.00025,2]
[426920179,1783017038000,-773.44,0.00025864,2]
[426920167,1783017038000,-167.0,0.00025,2]
[426920162,1783017038000,-192.66153975,0.00024902,2]
[426920164,1783017038000,-152.31295053,0.00024902,2]
[426920161,1783017038000,-135.09804159,0.000249,2]
[426920165,1783017038000,-885.29795848,0.0002498,2]
[426920163,1783017038000,-166.83072253,0.00024902,2]
[426920160,1783017038000,-150.0,0.00024164,2]
[426920166,1783017038000,-2423.8423296,0.0002498,2]
[426920176,1783017038000,-150.0,0.00025373,2]
[426920170,1783017038000,-187.0,0.00025,2]
[426920174,1783017038000,-846.4,0.00025218,7]
[426920185,1783017038000,-216.69616408,0.00026059,2]
[426920195,1783017038000,-166.55256959,0.00026155,2]
[426920191,1783017038000,-1032.25033856,0.000261,2]
[426920189,1783017038000,-547.05643814,0.000261,2]
[426920188,1783017038000,-1294.38776072,0.000261,2]
[426920196,1783017038000,-184.69114953,0.00026155,2]
[426920186,1783017038000,-160.0,0.00026059,2]
[426920193,1783017038000,-8568.62820624,0.000261,2]
[426920184,1783017038000,-160.0,0.00026059,2]
[426920180,1783017038000,-253.0,0.00026,2]
[426920183,1783017038000,-2575.91274563,0.00026023,2]
[426920182,1783017038000,-219.0,0.00026,2]
[426920181,1783017038000,-187.0,0.00026,2]
[426920178,1783017038000,-150.0,0.00025675,7]
[426920187,1783017038000,-160.0,0.00026059,2]
[426920177,1783017038000,-264.0,0.0002552,2]
[426920286,1783017039000,-248.88533631,0.00026991,2]
[426920282,1783017039000,-337.7963734,0.00026991,2]
[426920284,1783017039000,-238.05304227,0.00026991,2]
[426920271,1783017039000,-244.07883424,0.00026991,2]
[426920266,1783017039000,-218.96343323,0.00026991,2]
[426920258,1783017039000,-333.10513918,0.00026991,2]
[426920256,1783017039000,-294.60614607,0.00026991,2]
[426920264,1783017039000,-320.80546005,0.00026991,2]
[426920252,1783017039000,-218.12230523,0.00026991,2]
[426920262,1783017039000,-369.38229906,0.00026991,2]
[426920288,1783017039000,-234.31888584,0.00026991,2]
[426920268,1783017039000,-164.31444694,0.00026991,2]
[426920290,1783017039000,-204.00480717,0.00026991,2]
[426920301,1783017039000,-253.42383584,0.00026991,2]
[426920276,1783017039000,-500.49216759,0.00026991,2]
[426920274,1783017039000,-577.98461924,0.00026991,2]
[426920280,1783017039000,-240.78065107,0.00026991,2]
[426920272,1783017039000,-278.02917037,0.00026991,2]
[426920294,1783017039000,-237.71320758,0.00026991,2]
[426920278,1783017039000,-291.74921659,0.00026991,2]
[426920254,1783017039000,-206.01894976,0.00026991,2]
[426920300,1783017039000,-268.86851686,0.00026991,2]
[426920296,1783017039000,-260.31150949,0.00026991,2]
[426920309,1783017039000,-153.44759845,0.00026991,2]
[426920307,1783017039000,-190.74835733,0.00026991,2]
[426920305,1783017039000,-188.51710699,0.00026991,2]
[426920316,1783017039000,-203.38720443,0.00026991,2]
[426920303,1783017039000,-246.49510084,0.00026991,2]
[426920292,1783017039000,-239.51226869,0.00026991,2]
[426920250,1783017039000,-2500.0,0.000269,2]
[426920227,1783017039000,-3421.8656,0.000265,2]
[426920244,1783017039000,-1032.25033856,0.000268,2]
[426920199,1783017039000,-333.66144506,0.00026155,2]
[426920197,1783017039000,-160.40273002,0.00026155,2]
[426920198,1783017039000,-385.32307949,0.00026155,2]
[426920200,1783017039000,-168.8981867,0.00026155,2]
[426920201,1783017039000,-154.29882408,0.00026155,2]
[426920205,1783017039000,-304.62590106,0.00026155,2]
[426920204,1783017039000,-206.28814274,0.00026155,2]
[426920207,1783017039000,-207.27664603,0.00026155,2]
[426920203,1783017039000,-248.23814636,0.00026155,2]
[426920209,1783017039000,-151.68457117,0.00026155,2]
[426920215,1783017039000,-1032.25033856,0.000263,2]
[426920202,1783017039000,-168.83660328,0.00026155,2]
[426920213,1783017039000,-1067.58406073,0.00026227,5]
[426920211,1783017039000,-473.1442,0.000262,120]
[426920246,1783017039000,-8568.62820624,0.000268,2]
[426920214,1783017039000,-547.05643814,0.000263,2]
[426920231,1783017039000,-1294.38776072,0.000266,2]
[426920229,1783017039000,-4313.16403188,0.000265,2]
[426920225,1783017039000,-773.44,0.00026465,2]
[426920237,1783017039000,-8568.62820624,0.000266,2]
[426920217,1783017039000,-8568.62820624,0.000263,2]
[426920239,1783017039000,-150.0,0.00026641,2]
[426920235,1783017039000,-1032.25033856,0.000266,2]
[426920223,1783017039000,-1294.38776072,0.000264,2]
[426920298,1783017039000,-226.25797064,0.00026991,2]
[426920221,1783017039000,-6328.69138441,0.00026346,2]
[426920241,1783017039000,-694.64,0.00026708,7]
[426920219,1783017039000,-2136.08,0.0002632,2]
[426920242,1783017039000,-547.05643814,0.000268,2]
[426920248,1783017039000,-1294.38776072,0.000269,2]
[426920233,1783017039000,-547.05643814,0.000266,2]
[426920311,1783017039000,-248.71280734,0.00026991,2]
[426920260,1783017039000,-230.48162992,0.00026991,2]
[426920312,1783017039000,-260.90417373,0.00026991,2]
[426920392,1783017039000,-683.0,0.00027359,5]
[426920382,1783017039000,-1794.0,0.00027114,2]
[426920383,1783017039000,-1294.38776072,0.000272,2]
[426920388,1783017039000,-199.16,0.00027358,120]
[426920387,1783017039000,-226.37123433,0.00027278,2]
[426920385,1783017039000,-4313.16403186,0.0002725,2]
[426920393,1783017039000,-150.0,0.0002736,5]
[426920398,1783017039000,-174.06130644,0.00027397,2]
[426920395,1783017039000,-672.0,0.00027364,5]
[426920396,1783017039000,-150.0,0.00027367,5]
[426920402,1783017039000,-216.69616408,0.00027397,10]
[426920399,1783017039000,-1000.0,0.00027397,2]
[426920397,1783017039000,-150.0,0.00027367,5]
[426920400,1783017039000,-500.0,0.00027397,15]
[426920401,1783017039000,-1500.0,0.00027397,2]
[426920394,1783017039000,-152.0,0.0002736,5]
[426920405,1783017039000,-179.69229487,0.00027397,2]
[426920403,1783017039000,-300.0,0.00027397,2]
[426920404,1783017039000,-205.43008531,0.00027397,2]
[426920407,1783017039000,-539.0768846,0.00027397,2]
[426920409,1783017039000,-152.0,0.00027401,5]
[426920408,1783017039000,-8568.62820624,0.000274,2]
[426920406,1783017039000,-359.38458973,0.00027397,2]
[426920411,1783017039000,-685.0,0.00027423,5]
[426920410,1783017039000,-150.0,0.00027401,5]
[426920413,1783017039000,-208.00779828,0.00027548,2]
[426920415,1783017039000,-162.02882278,0.00027548,2]
[426920414,1783017039000,-415.2544763,0.00027548,2]
[426920314,1783017039000,-295.42157482,0.00026991,2]
[426920391,1783017039000,-273.93351834,0.00027358,5]
[426920390,1783017039000,-151.0,0.00027358,5]
[426920412,1783017039000,-439.0,0.000275,7]
[426920378,1783017039000,-173179.3865,0.000271,120]
[426920380,1783017039000,-1803.0,0.00027114,2]
[426920337,1783017039000,-335.89223833,0.00026991,2]
[426920325,1783017039000,-337.67320655,0.00026991,2]
[426920333,1783017039000,-412.57628549,0.00026991,2]
[426920320,1783017039000,-239.16546407,0.00026991,2]
[426920323,1783017039000,-308.59764816,0.00026991,2]
[426920332,1783017039000,-496.47629271,0.00026991,2]
[426920341,1783017039000,-414.55329206,0.00026991,2]
[426920339,1783017039000,-204.12687834,0.00026991,2]
[426920330,1783017039000,-188.09745689,0.00026991,2]
[426920344,1783017039000,-229.38948796,0.00026991,2]
[426920327,1783017039000,-153.37221337,0.00026991,2]
[426920335,1783017039000,-456.93885159,0.00026991,2]
[426920329,1783017039000,-223.93970774,0.00026991,2]
[426920348,1783017039000,-291.76080188,0.00026991,2]
[426920319,1783017039000,-246.66712164,0.00026991,2]
[426920346,1783017039000,-303.36914233,0.00026991,2]
[426920352,1783017039000,-187.0,0.00027,2]
[426920374,1783017039000,-1032.25033856,0.000271,2]
[426920370,1783017039000,-500.0,0.00027099,2]
[426920372,1783017039000,-547.05643814,0.000271,2]
[426920360,1783017039000,-2232.76735533,0.00027014,2]
[426920362,1783017039000,-1244.66400716,0.00027014,2]
[426920376,1783017039000,-8568.62820624,0.000271,2]
[426920368,1783017039000,-337.862464,0.00027099,2]
[426920358,1783017039000,-159.0629198,0.00027004,2]
[426920366,1783017039000,-245.48169602,0.00027099,2]
[426920364,1783017039000,-1788.0,0.0002709,2]
[426920350,1783017039000,-253.0,0.00027,2]
[426920354,1783017039000,-219.0,0.00027,2]
[426920356,1783017039000,-226.37123433,0.00027004,2]
[426920478,1783017040000,-377.03421397,0.00027548,2]
[426920467,1783017040000,-174.97070727,0.00027548,2]
[426920477,1783017040000,-319.54920007,0.00027548,2]
[426920459,1783017040000,-476.10608454,0.00027548,2]
[426920458,1783017040000,-506.6945601,0.00027548,2]
[426920464,1783017040000,-408.00961433,0.00027548,2]
[426920461,1783017040000,-497.77067261,0.00027548,2]
[426920462,1783017040000,-228.34329624,0.00027548,2]
[426920463,1783017040000,-468.63777168,0.00027548,2]
[426920465,1783017040000,-203.55116765,0.00027548,2]
[426920466,1783017040000,-479.02453737,0.00027548,2]
[426920460,1783017040000,-239.58861894,0.00027548,2]
[426920455,1783017040000,-339.49352847,0.00027548,2]
[426920472,1783017040000,-448.07683969,0.00027548,2]
[426920469,1783017040000,-520.62301897,0.00027548,2]
[426920470,1783017040000,-452.51594128,0.00027548,2]
[426920473,1783017040000,-506.84767169,0.00027548,2]
[426920475,1783017040000,-249.79238317,0.00027548,2]
[426920474,1783017040000,-212.93692286,0.00027548,2]
[426920476,1783017040000,-492.99020167,0.00027548,2]
[426920471,1783017040000,-537.73703373,0.00027548,2]
[426920480,1783017040000,-306.89519691,0.00027548,2]
[426920490,1783017040000,-410.86017061,0.00027548,2]
[426920491,1783017040000,-718.76917947,0.00027548,2]
[426920482,1783017040000,-590.84314964,0.00027548,2]
[426920484,1783017040000,-493.33424328,0.00027548,2]
[426920486,1783017040000,-478.33092813,0.00027548,2]
[426920457,1783017040000,-481.56130214,0.00027548,2]
[426920468,1783017040000,-475.42641515,0.00027548,2]
[426920456,1783017040000,-583.49843319,0.00027548,2]
[426920430,1783017040000,-290.57005018,0.00027548,2]
[426920441,1783017040000,-174.39670117,0.00027548,2]
[426920418,1783017040000,-165.9380636,0.00027548,2]
[426920417,1783017040000,-218.66398581,0.00027548,2]
[426920479,1783017040000,-381.49671466,0.00027548,2]
[426920416,1783017040000,-208.27691093,0.00027548,2]
[426920420,1783017040000,-436.24461047,0.00027548,2]
[426920428,1783017040000,-182.53923308,0.00027548,2]
[426920432,1783017040000,-156.43641278,0.00027548,2]
[426920424,1783017040000,-554.07344858,0.00027548,2]
[426920421,1783017040000,-589.21229214,0.00027548,2]
[426920431,1783017040000,-244.73940062,0.00027548,2]
[426920427,1783017040000,-437.92686645,0.00027548,2]
[426920425,1783017040000,-481.20819007,0.00027548,2]
[426920429,1783017040000,-198.16443608,0.00027548,2]
[426920454,1783017040000,-230.10383159,0.00027548,2]
[426920423,1783017040000,-460.96325984,0.00027548,2]
[426920426,1783017040000,-239.94227655,0.00027548,2]
[426920434,1783017040000,-198.08109889,0.00027548,2]
[426920448,1783017040000,-556.05834075,0.00027548,2]
[426920435,1783017040000,-247.59114268,0.00027548,2]
[426920451,1783017040000,-667.32289012,0.00027548,2]
[426920433,1783017040000,-199.67808095,0.00027548,2]
[426920446,1783017040000,-488.15766848,0.00027548,2]
[426920450,1783017040000,-770.64615898,0.00027548,2]
[426920437,1783017040000,-230.07891307,0.00027548,2]
[426920452,1783017040000,-406.77080553,0.00027548,2]
[426920443,1783017040000,-374.48979882,0.00027548,2]
[426920439,1783017040000,-178.32338398,0.00027548,2]
[426920453,1783017040000,-378.48168533,0.00027548,2]
[426920422,1783017040000,-499.65770877,0.00027548,2]
[426920483,1783017040000,-521.80834746,0.00027548,2]
[426920419,1783017040000,-201.64576125,0.00027548,2]
[426920485,1783017040000,-406.77440886,0.00027548,2]
[426920519,1783017040000,-389.0,0.00027785,2]
[426920520,1783017040000,-2013.0,0.000278,2]
[426920526,1783017040000,-5000.0,0.00027853,7]
[426920524,1783017040000,-226.37123433,0.00027826,2]
[426920521,1783017040000,-666.0,0.00027809,5]
[426920522,1783017040000,-9520.0728952,0.00027823,2]
[426920525,1783017040000,-263.0,0.0002784,2]
[426920527,1783017040000,-1107.61,0.00027872,2]
[426920534,1783017040000,-219.0,0.00028,2]
[426920533,1783017040000,-187.0,0.00028,2]
[426920541,1783017040000,-761.56475266,0.00028105,2]
[426920530,1783017040000,-150.0,0.00027973,2]
[426920532,1783017040000,-253.0,0.00028,2]
[426920531,1783017040000,-4313.16403186,0.00028,2]
[426920537,1783017040000,-151.0,0.00028055,5]
[426920535,1783017040000,-1107.61,0.00028033,30]
[426920536,1783017040000,-162.74,0.00028033,7]
[426920539,1783017040000,-159.06291985,0.000281,2]
[426920542,1783017040000,-389.0,0.0002813,2]
[426920538,1783017040000,-226.37123433,0.000281,2]
[426920543,1783017040000,-163.506,0.0002813,18]
[426920540,1783017040000,-834.15361265,0.00028105,2]
[426920545,1783017040000,-1244.66400715,0.00028139,2]
[426920544,1783017040000,-3453.312,0.0002813,18]
[426920547,1783017040000,-1107.61,0.00028194,7]
[426920546,1783017040000,-157.073916,0.0002816,2]
[426920550,1783017040000,-216.69616408,0.00028275,7]
[426920548,1783017040000,-8568.62820624,0.000282,2]
[426920481,1783017040000,-497.42561469,0.00027548,2]
[426920523,1783017040000,-1224.9966328,0.00027823,2]
[426920517,1783017040000,-2232.76735529,0.00027707,2]
[426920549,1783017040000,-389.0,0.00028231,2]
[426920528,1783017040000,-8568.62820624,0.000279,2]
[426920529,1783017040000,-157.073915,0.00027921,2]
[426920489,1783017040000,-506.50980983,0.00027548,2]
[426920487,1783017040000,-432.11591781,0.00027548,2]
[426920493,1783017040000,-436.27542303,0.00027548,2]
[426920492,1783017040000,-181.8222043,0.00027548,2]
[426920503,1783017040000,-458.77897593,0.00027548,2]
[426920494,1783017040000,-306.74442674,0.00027548,2]
[426920495,1783017040000,-447.87941547,0.00027548,2]
[426920497,1783017040000,-744.71443907,0.00027548,2]
[426920500,1783017040000,-167.94611917,0.00027548,2]
[426920501,1783017040000,-408.25375667,0.00027548,2]
[426920498,1783017040000,-618.86442823,0.00027548,2]
[426920496,1783017040000,-376.19491378,0.00027548,2]
[426920502,1783017040000,-621.82993808,0.00027548,2]
[426920488,1783017040000,-462.89647224,0.00027548,2]
[426920506,1783017040000,-164.41,0.0002755,30]
[426920499,1783017040000,-609.25180213,0.00027548,2]
[426920510,1783017040000,-159.0629198,0.00027552,2]
[426920507,1783017040000,-1107.61,0.0002755,30]
[426920505,1783017040000,-583.52160377,0.00027548,2]
[426920514,1783017040000,-157.073915,0.00027681,2]
[426920512,1783017040000,-153.58,0.00027621,120]
[426920518,1783017040000,-1107.61,0.00027711,7]
[426920515,1783017040000,-500.0,0.00027699,15]
[426920516,1783017040000,-8568.62820624,0.000277,2]
[426920508,1783017040000,-162.74,0.0002755,30]
[426920513,1783017040000,-152.0,0.00027671,5]
[426920511,1783017040000,-681.0,0.0002757,5]
[426920504,1783017040000,-455.0537135,0.00027548,2]
[426920509,1783017040000,-226.37123433,0.00027552,2]
[426920595,1783017041000,-945.0,0.00028769,5]
[426920596,1783017041000,-757.0,0.00028769,5]
[426920588,1783017041000,-1000.0,0.00028706,2]
[426920590,1783017041000,-1000.0,0.00028755,2]
[426920581,1783017041000,-1000.0,0.00028609,2]
[426920580,1783017041000,-216.69616408,0.000286,7]
[426920582,1783017041000,-1348.22543929,0.00028646,15]
[426920578,1783017041000,-500.0,0.00028599,7]
[426920589,1783017041000,-4313.16403186,0.00028749,2]
[426920579,1783017041000,-84668.71910636,0.000286,7]
[426920584,1783017041000,-566.63985286,0.00028658,2]
[426920583,1783017041000,-226.37123433,0.00028648,2]
[426920600,1783017041000,-150.0,0.000288,30]
[426920598,1783017041000,-155.81534349,0.00028776,2]
[426920593,1783017041000,-612.93854249,0.00028767,10]
[426920597,1783017041000,-254.0,0.00028772,2]
[426920594,1783017041000,-502.09,0.00028767,2]
[426920602,1783017041000,-154.92213951,0.000288,30]
[426920604,1783017041000,-150.0,0.000288,30]
[426920617,1783017041000,-400.0,0.000289,10]
[426920615,1783017041000,-1000.0,0.00028853,2]
[426920620,1783017041000,-226.37123433,0.00028922,2]
[426920623,1783017041000,-500.0,0.00028969,15]
[426920619,1783017041000,-1000.0,0.00028902,2]
[426920576,1783017041000,-151.0,0.00028597,7]
[426920622,1783017041000,-1000.0,0.00028951,2]
[426920591,1783017041000,-1000.0,0.00028767,10]
[426920586,1783017041000,-1107.61,0.00028677,7]
[426920561,1783017041000,-2425.59341701,0.000284,2]
[426920587,1783017041000,-200.0,0.00028702,2]
[426920621,1783017041000,-913.87770319,0.0002894,2]
[426920555,1783017041000,-2425.59341709,0.000284,2]
[426920556,1783017041000,-2425.59341701,0.000284,2]
[426920553,1783017041000,-226.37123433,0.00028374,2]
[426920551,1783017041000,-1000.0,0.00028315,2]
[426920552,1783017041000,-1107.61,0.00028355,2]
[426920554,1783017041000,-2232.76735529,0.00028399,2]
[426920557,1783017041000,-2425.59341701,0.000284,2]
[426920558,1783017041000,-2425.59341701,0.000284,2]
[426920559,1783017041000,-2425.59341701,0.000284,2]
[426920568,1783017041000,-725.21807864,0.00028462,2]
[426920562,1783017041000,-2425.59341701,0.000284,2]
[426920585,1783017041000,-1000.0,0.00028658,2]
[426920569,1783017041000,-8568.62820624,0.000285,2]
[426920564,1783017041000,-2425.59341701,0.000284,2]
[426920566,1783017041000,-317.0,0.000284,2]
[426920570,1783017041000,-1000.0,0.00028511,2]
[426920563,1783017041000,-2425.59341701,0.000284,2]
[426920567,1783017041000,-1805.0,0.00028416,2]
[426920565,1783017041000,-157.073916,0.000284,2]
[426920572,1783017041000,-1107.61,0.00028516,30]
[426920571,1783017041000,-162.74,0.00028516,2]
[426920573,1783017041000,-169.93,0.00028542,2]
[426920574,1783017041000,-1000.0,0.0002856,2]
[426920575,1783017041000,-674.0,0.00028561,5]
[426920577,1783017041000,-1000.0,0.00028599,2]
[426920560,1783017041000,-2425.59341701,0.000284,2]
[426920605,1783017041000,-150.0,0.000288,30]
[426920609,1783017041000,-200.0,0.000288,10]
[426920613,1783017041000,-1107.61,0.00028838,2]
[426920654,1783017041000,-1000.0,0.00029,2]
[426920655,1783017041000,-19841.21859133,0.00029,2]
[426920661,1783017041000,-220.0,0.00029,2]
[426920656,1783017041000,-210292.51722556,0.00029,5]
[426920659,1783017041000,-263.0,0.00029,2]
[426920657,1783017041000,-1256.62575978,0.00029,7]
[426920660,1783017041000,-204.0,0.00029,2]
[426920658,1783017041000,-1000.0,0.00029,2]
[426920673,1783017041000,-150.0,0.00029372,2]
[426920662,1783017041000,-162.74,0.00029,30]
[426920674,1783017041000,-300.0,0.00029386,7]
[426920663,1783017041000,-1107.64,0.00029,30]
[426920666,1783017041000,-1000.0,0.00029119,2]
[426920665,1783017041000,-2232.76735529,0.00029092,2]
[426920664,1783017041000,-226.84771944,0.00029051,2]
[426920672,1783017041000,-170.28,0.00029296,3]
[426920667,1783017041000,-500.0,0.00029151,2]
[426920670,1783017041000,-389.0,0.0002922,2]
[426920669,1783017041000,-389.0,0.0002921,2]
[426920671,1783017041000,-1244.66400715,0.00029264,2]
[426920668,1783017041000,-226.37123433,0.00029196,2]
[426920675,1783017041000,-226.37123433,0.0002947,2]
[426920678,1783017041000,-1000.0,0.000295,2]
[426920677,1783017041000,-1810.99768879,0.000295,2]
[426920676,1783017041000,-4313.16403186,0.00029499,2]
[426920608,1783017041000,-150.0,0.000288,30]
[426920680,1783017041000,-227.39360047,0.0002957,2]
[426920653,1783017041000,-11781.02047179,0.00029,90]
[426920651,1783017041000,-200.0,0.00029,2]
[426920679,1783017041000,-245.97593709,0.0002957,2]
[426920650,1783017041000,-200.0,0.00029,2]
[426920652,1783017041000,-333.09,0.00029,2]
[426920624,1783017041000,-39158.23019902,0.0002897,6]
[426920627,1783017041000,-500.0,0.00029,7]
[426920628,1783017041000,-500.0,0.00029,7]
[426920629,1783017041000,-500.0,0.00029,7]
[426920626,1783017041000,-1000.0,0.00028999,2]
[426920625,1783017041000,-151.0,0.00028997,7]
[426920630,1783017041000,-500.0,0.00029,7]
[426920636,1783017041000,-500.0,0.00029,7]
[426920632,1783017041000,-500.0,0.00029,7]
[426920631,1783017041000,-500.0,0.00029,7]
[426920633,1783017041000,-500.0,0.00029,7]
[426920635,1783017041000,-500.0,0.00029,7]
[426920612,1783017041000,-1000.0,0.00028804,2]
[426920637,1783017041000,-500.0,0.00029,7]
[426920648,1783017041000,-200.0,0.00029,2]
[426920645,1783017041000,-500.0,0.00029,7]
[426920646,1783017041000,-200.0,0.00029,2]
[426920647,1783017041000,-200.0,0.00029,2]
[426920642,1783017041000,-500.0,0.00029,7]
[426920643,1783017041000,-500.0,0.00029,7]
[426920644,1783017041000,-500.0,0.00029,7]
[426920640,1783017041000,-500.0,0.00029,7]
[426920639,1783017041000,-500.0,0.00029,7]
[426920649,1783017041000,-200.0,0.00029,2]
[426920638,1783017041000,-532.11,0.00029,7]
[426920641,1783017041000,-500.0,0.00029,7]
[426920715,1783017042000,-529.91142118,0.0003,2]
[426920717,1783017042000,-874.57845626,0.0003,2]
[426920716,1783017042000,-156.73732439,0.0003,5]
[426920719,1783017042000,-164.20104984,0.0003007,2]
[426920710,1783017042000,-933.0,0.00029904,2]
[426920712,1783017042000,-160.0,0.0003,120]
[426920714,1783017042000,-599.67825655,0.0003,2]
[426920721,1783017042000,-244566.47079453,0.0003009,2]
[426920718,1783017042000,-226.37123433,0.00030018,2]
[426920720,1783017042000,-1000.0,0.00030079,2]
[426920713,1783017042000,-13047.26674739,0.0003,5]
[426920722,1783017042000,-151.0,0.0003009,7]
[426920729,1783017042000,-151.0,0.0003009,7]
[426920724,1783017042000,-151.0,0.0003009,7]
[426920726,1783017042000,-151.0,0.0003009,7]
[426920727,1783017042000,-151.0,0.0003009,7]
[426920731,1783017042000,-151.0,0.0003009,7]
[426920723,1783017042000,-151.0,0.0003009,7]
[426920728,1783017042000,-151.0,0.0003009,7]
[426920732,1783017042000,-151.0,0.0003009,7]
[426920730,1783017042000,-151.0,0.0003009,7]
[426920742,1783017042000,-386.111047,0.0003009,7]
[426920745,1783017042000,-151.0,0.0003009,7]
[426920711,1783017042000,-380.0,0.0002999,2]
[426920744,1783017042000,-151.0,0.0003009,7]
[426920725,1783017042000,-151.0,0.0003009,7]
[426920708,1783017042000,-599.67825655,0.000299,2]
[426920695,1783017042000,-599.67825655,0.000299,2]
[426920707,1783017042000,-599.67825655,0.000299,2]
[426920733,1783017042000,-151.0,0.0003009,7]
[426920682,1783017042000,-1329.22373007,0.0002958,2]
[426920685,1783017042000,-268.92,0.00029747,2]
[426920683,1783017042000,-1329.22373007,0.00029706,2]
[426920684,1783017042000,-226.37123433,0.00029744,2]
[426920681,1783017042000,-226.35927725,0.0002957,2]
[426920687,1783017042000,-2232.76735529,0.00029785,2]
[426920686,1783017042000,-11150.37731923,0.00029761,2]
[426920697,1783017042000,-599.67825655,0.000299,2]
[426920688,1783017042000,-700.0,0.000298,10]
[426920690,1783017042000,-599.67825659,0.000299,2]
[426920689,1783017042000,-350.0,0.00029878,2]
[426920709,1783017042000,-599.67825655,0.000299,2]
[426920692,1783017042000,-599.67825655,0.000299,2]
[426920693,1783017042000,-599.67825655,0.000299,2]
[426920694,1783017042000,-599.67825655,0.000299,2]
[426920691,1783017042000,-599.67825655,0.000299,2]
[426920698,1783017042000,-900.0,0.000299,10]
[426920700,1783017042000,-599.67825655,0.000299,2]
[426920705,1783017042000,-599.67825655,0.000299,2]
[426920701,1783017042000,-599.67825655,0.000299,2]
[426920699,1783017042000,-599.67825655,0.000299,2]
[426920706,1783017042000,-599.67825655,0.000299,2]
[426920702,1783017042000,-599.67825655,0.000299,2]
[426920704,1783017042000,-599.67825655,0.000299,2]
[426920703,1783017042000,-599.67825655,0.000299,2]
[426920696,1783017042000,-599.67825655,0.000299,2]
[426920734,1783017042000,-151.0,0.0003009,7]
[426920741,1783017042000,-386.111047,0.0003009,7]
[426920736,1783017042000,-151.0,0.0003009,7]
[426920772,1783017042000,-386.111047,0.000301,7]
[426920769,1783017042000,-151.0,0.000301,7]
[426920771,1783017042000,-386.111047,0.000301,7]
[426920773,1783017042000,-151.0,0.000301,7]
[426920779,1783017042000,-151.0,0.000301,7]
[426920775,1783017042000,-151.000009,0.000301,7]
[426920777,1783017042000,-151.0,0.000301,7]